Cogmind - Beta 10.1 @@@ ROGUE MODE // 2020.10.16 @ 01:04:07 Player: WayneKnight Result: Self-destructed Performance ------------- Evolutions (2) 1000 Regions Visited (5) 1000 Robots Destroyed (26) 130 Value Destroyed (464) 464 Prototype IDs (26) 520 Alien Tech Used (0) 0 Bonus (300) 300 TOTAL SCORE: 3414 Bonus ------- Aligned with FarCom 300 Cogmind --------- Core Integrity 377/550 Matter 241/300 Energy 100/100 System Corruption 0% Temperature Cool (9) Movement Core (1150) Ox22 Location -8/Materials Parts ------- > --- POWER (1) -------- (None) > --- PROPULSION (3) --- Armored Treads > --- UTILITY (4) ------ Large Storage Unit Large Storage Unit High-capacity Storage Unit > --- WEAPON (3) ------- Improved Assault Rifle > --- INVENTORY (24) --- Light Ion Engine Light Ion Engine Aluminum Leg Flying Fortress v7 Medium Storage Unit Transmission Jammer ECM Suite Maneuvering Thrusters Heavy Armor Plating EM Pulse Gun Shock Rifle Light Assault Rifle Heavy Assault Rifle Improved Assault Rifle Improved Assault Rifle Flak Cannon Flak Cannon Grenade Launcher Peak State ------------ > --- POWER ------------ Ion Engine > --- PROPULSION ------- Light Treads Light Treads Armored Treads > --- UTILITY ---------- Large Storage Unit Large Storage Unit High-capacity Storage Unit Weapon Shielding > --- WEAPON ----------- Improved Assault Rifle Improved Assault Rifle Improved Assault Rifle > --- INVENTORY -------- Light Ion Engine Light Ion Engine Aluminum Leg Aluminum Leg Flying Fortress v7 Medium Storage Unit Transmission Jammer ECM Suite Maneuvering Thrusters Heavy Armor Plating EM Pulse Gun Shock Rifle Light Assault Rifle Heavy Assault Rifle Improved Assault Rifle Improved Assault Rifle Flak Cannon Flak Cannon Grenade Launcher [Rating: 26] Favorites ----------- Power Ion Engine Engine Ion Engine Propulsion Light Treads Treads Light Treads Leg Aluminum Leg Utility Large Storage Unit Device ECM Suite Storage Large Storage Unit Protection Weapon Shielding Weapon Light Assault Rifle Ballistic Gun Light Assault Rifle Launcher Grenade Launcher Build | -11 -10 -10 -10 -9 -8 ------- Run | Scr Mat Min Exi Min Mat Slots Evolved 4 | . . . . . 4 Power . | . . . . . . Propulsion 1 | . . . . . 1 Utility 2 | . . . . . 2 Weapon 1 | . . . . . 1 Parts Attached 19 | . 7 . 1 1 10 Power 1 | . 1 . . . . Engine 1 | . 1 . . . . Core . | . . . . . . Reactor . | . . . . . . Propulsion 5 | . 2 . . . 3 Treads 3 | . 2 . . . 1 Leg 2 | . . . . . 2 Wheel . | . . . . . . Hover . | . . . . . . Flight . | . . . . . . Utility 6 | . 3 . 1 . 2 Device 1 | . 1 . . . . Storage 4 | . 2 . 1 . 1 Processor . | . . . . . . Hackware . | . . . . . . Protection 1 | . . . . . 1 Artifact . | . . . . . . Weapon 7 | . 1 . . 1 5 Energy Gun . | . . . . . . Energy Cannon . | . . . . . . Ballistic Gun 6 | . 1 . . . 5 Ballistic Cannon . | . . . . . . Launcher 1 | . . . . 1 . Special Weapon . | . . . . . . Impact Weapon . | . . . . . . Slashing Weapon . | . . . . . . Piercing Weapon . | . . . . . . Special Melee Weapon . | . . . . . . Unidentified Prototypes . | . . . . . . Parts Lost 7 | . . . . . 7 Power 1 | . . . . . 1 Propulsion 3 | . . . . . 3 Utility 1 | . . . . . 1 Weapon 2 | . . . . . 2 Highest Loss Streak 6 | . . . . . 6 Average Slot Usage (%) 92 | . 93 100 100 100 78 Engine 12 | . 14 14 14 14 6 Treads 26 | . 27 28 28 28 20 Device 1 | . 2 . . . . Storage 23 | . 19 28 28 28 26 Ballistic Gun 26 | . 28 28 28 14 23 Naked Turns . | . . . . . . Heaviest Build 79 | 9 39 39 55 57 79 Greatest Support 60 | 20 40 40 40 40 60 Greatest Overweight (x) 23 | . . . 1 1 23 Average Overweight (x) . | . . . . 1 2 Largest Inventory Capacity 24 | 6 16 16 18 18 24 Average Capacity 14 | 6 9 16 16 18 23 Most Carried 24 | 6 9 9 14 14 24 Average Carried 11 | 6 6 9 11 14 20 Final Capacity 24 | 6 16 16 18 18 24 Final Carried 22 | 6 9 9 14 14 22 Class Distribution -------------------- 79% | Mutant 13% | Hauler-Skirmisher 7% | Hauler-Mutant Dominant Class ---------------- Mutant | -10/Materials Mutant | -10/Mines Mutant | -10/Exiles Mutant | -9/Mines Hauler-Skirmisher | -8/Materials Resources | -11 -10 -10 -10 -9 -8 ----------- Run | Scr Mat Min Exi Min Mat Matter Collected 515 | 200 126 . . . 189 Remotely . | . . . . . . Salvage Created 459 | . 244 . . 37 178 Parts 45 | . 19 . . 13 13 Haulers Intercepted . | . . . . . . Recyclers Shooed 1 | . . . . 1 . Parts Field Recycled . | . . . . . . Retrieved Matter . | . . . . . . Parts Self-Destructed . | . . . . . . Prevented . | . . . . . . Kills | -11 -10 -10 -10 -9 -8 ------- Run | Scr Mat Min Exi Min Mat Combat Hostiles Destroyed 26 | . 12 . . 7 7 Guns 18 | . 12 . . . 6 AOE 8 | . . . . 7 1 Classes Destroyed 4 | . 2 . . . 2 Swarmer 20 | . 9 . . 7 4 Grunt 4 | . 3 . . . 1 Duelist 1 | . . . . . 1 Sentry 1 | . . . . . 1 Best Kill Streak 7 | . 5 . . 7 3 Combat Bots Only 7 | . 5 . . 7 3 Max Kills in Single Turn 3 | . 1 . . 3 2 Gunslinging 1 | . . . . . 1 Exploded 3 | . . . . 3 1 Melee . | . . . . . . Uniques/NPCs Destroyed . | . . . . . . Combat | -11 -10 -10 -10 -9 -8 -------- Run | Scr Mat Min Exi Min Mat Damage Taken 1592 | . 390 . . 57 1145 Core 213 | . 33 . . 7 173 Absorbed by Shields . | . . . . . . Core Remaining (%) 92 | 100 . . . 84 . Volleys Fired 46 | . 28 . . 4 14 Largest 3 | . 2 . . 1 3 Hottest 69 | . 40 . . 30 69 Shots Fired 101 | . 56 . . 4 41 Gun 97 | . 56 . . . 41 Cannon . | . . . . . . Launcher 4 | . . . . 4 . Special . | . . . . . . Kinetic 97 | . 56 . . . 41 Thermal . | . . . . . . Explosive 4 | . . . . 4 . Electromagnetic . | . . . . . . Robot Hit Streak 14 | . 14 . . 1 14 Robot Miss Streak 4 | . 4 . . 1 1 Penetration Max . | . . . . . . Secondary Targets 3 | . 1 . . . 2 Max Gunslinging Chain 1 | . 1 . . . 1 Shots Hit Robots 66 | . 33 . . 2 31 Core Hits 37 | . 19 . . 8 10 Critical Hits 2 | . 1 . . . 1 Critical Kills 1 | . 1 . . . . Critical Parts Destroyed . | . . . . . . Melee Attacks . | . . . . . . Impact . | . . . . . . Slashing . | . . . . . . Piercing . | . . . . . . Sneak Attacks . | . . . . . . Combat Hostiles . | . . . . . . Follow-up Attacks . | . . . . . . Damage Inflicted 1509 | . 264 . . 450 795 Guns 697 | . 264 . . . 433 Cannons . | . . . . . . Explosions 812 | . . . . 450 362 Melee . | . . . . . . Ramming . | . . . . . . Kinetic 697 | . 264 . . . 433 Thermal 362 | . . . . . 362 Explosive 450 | . . . . 450 . Electromagnetic . | . . . . . . Impact . | . . . . . . Slashing . | . . . . . . Piercing . | . . . . . . Highest Corruption . | . . . . . . Average Corruption . | . . . . . . Corruption Purged . | . . . . . . Overload Shots . | . . . . . . Overflow Damage 214 | . . . . . 214 Projectiles . | . . . . . . Explosions 214 | . . . . . 214 Melee . | . . . . . . Knockbacks . | . . . . . . Impact . | . . . . . . Kinetic . | . . . . . . Secondary . | . . . . . . Self-Inflicted Damage 111 | . . . . . 111 Shots 1 | . . . . . 1 Rammed . | . . . . . . Targets Rammed . | . . . . . . Kicked . | . . . . . . Crushed . | . . . . . . Highest Temperature 57 | . 18 . . . 57 Average Temperature 18 | . 10 . . . 21 Received Heat Transfer 306 | . 72 . . . 234 Siege Activations . | . . . . . . Robots Corrupted . | . . . . . . Combat Hostiles . | . . . . . . Parts Fried . | . . . . . . Impact Corruptions . | . . . . . . Robots Melted . | . . . . . . Combat Hostiles . | . . . . . . Parts Melted . | . . . . . . Heat Transferred 200 | . . . . . 200 Parts Sabotaged . | . . . . . . Parts Stolen . | . . . . . . Parts Stripped . | . . . . . . Power Chain Reactions . | . . . . . . Missiles Intercepted . | . . . . . . Alert | -11 -10 -10 -10 -9 -8 ------- Run | Scr Mat Min Exi Min Mat Peak Influence 239 | . 202 78 . 160 239 Initial 78 | . . 78 . . 62 Average 83 | . 68 78 . 121 115 Maximum Alert Level 1 | . 1 . . . 1 Low Security (%) 84 | 100 84 100 . 100 80 Level 1 15 | . 15 . . . 19 Level 2 . | . . . . . . Level 3 . | . . . . . . Level 4 . | . . . . . . Level 5 . | . . . . . . High Security . | . . . . . . Max Security . | . . . . . . Squads Dispatched 3 | . 3 . . . . Investigation 2 | . 2 . . . . Extermination . | . . . . . . Reinforcement 1 | . 1 . . . . Assault . | . . . . . . Garrison . | . . . . . . Intercept . | . . . . . . Construction Impeded . | . . . . . . Haulers Reinforced . | . . . . . . Stealth | -11 -10 -10 -10 -9 -8 --------- Run | Scr Mat Min Exi Min Mat Distress Signals . | . . . . . . Communications Jammed . | . . . . . . Distress Signals . | . . . . . . Times Spotted 33 | . 16 . . 7 10 Peak Tracking Total 6 | . 4 . . 4 6 Tactical Retreats 2 | . 1 . . . 1 Traps | -11 -10 -10 -10 -9 -8 ------- Run | Scr Mat Min Exi Min Mat Traps Triggered 1 | . 1 . . . . Indirectly . | . . . . . . Trap Hack Attempts . | . . . . . . Triggered . | . . . . . . Disarmed . | . . . . . . Reprogrammed . | . . . . . . Reused . | . . . . . . Traps Extracted . | . . . . . . Installed . | . . . . . . Triggered . | . . . . . . Machines | -11 -10 -10 -10 -9 -8 ---------- Run | Scr Mat Min Exi Min Mat Machines Disabled 1 | . . . . . 1 Max in Single Turn 1 | . . . . . 1 Machines Sabotaged . | . . . . . . Garrisons Compromised . | . . . . . . Overloaded Fab Kills . | . . . . . . Fab Network Shutdowns . | . . . . . . Hacking | -11 -10 -10 -10 -9 -8 --------- Run | Scr Mat Min Exi Min Mat Machines Accessed 8 | . 6 . 2 . . Terminals 5 | . 5 . . . . Fabricators . | . . . . . . Repair Stations . | . . . . . . Recycling Units 1 | . 1 . . . . Scanalyzers . | . . . . . . Garrison Access . | . . . . . . Total Hacks 19 | . 17 . 2 . . Successful 11 | . 9 . 2 . . Failed 8 | . 8 . . . . Catastrophic 1 | . 1 . . . . Database Lockouts . | . . . . . . Manual 12 | . 11 . 1 . . Terminals 16 | . 16 . . . . Fabricators . | . . . . . . Repair Stations . | . . . . . . Recycling Units 1 | . 1 . . . . Scanalyzers . | . . . . . . Garrison Access . | . . . . . . Terminal Hacks 5 | . 3 . 2 . . Record 1 | . . . 1 . . Robot Analysis 2 | . 2 . . . . Prototype ID Bank 1 | . 1 . . . . EX-Prototype ID Bank 1 | . . . 1 . . Fabricator Hacks . | . . . . . . Repair Station Hacks . | . . . . . . Recycling Unit Hacks 1 | . 1 . . . . Report Inventory 1 | . 1 . . . . Scanalyzer . | . . . . . . Garrison Access Hacks . | . . . . . . Unauthorized Hacks 5 | . 5 . . . . Terminals 5 | . 5 . . . . Track 2 | . 2 . . . . Botnet 3 | . 3 . . . . Fabricators . | . . . . . . Repair Stations . | . . . . . . Recycling Units . | . . . . . . Scanalyzers . | . . . . . . Garrison Access . | . . . . . . Data Cores Recovered . | . . . . . . Used . | . . . . . . Hacking Detections 5 | . 5 . . . . Full Trace Events 1 | . 1 . . . . Feedback Events . | . . . . . . Feedback Blocked . | . . . . . . Robot Schematics Acquired . | . . . . . . Robots Built . | . . . . . . Matter . | . . . . . . Time . | . . . . . . Total Robot Build Rating . | . . . . . . Part Schematics Acquired . | . . . . . . Parts Built . | . . . . . . Matter . | . . . . . . Time . | . . . . . . Total Part Build Rating . | . . . . . . Parts Repaired . | . . . . . . Time . | . . . . . . Parts Recycled . | . . . . . . Recycled Matter . | . . . . . . Retrieved Matter . | . . . . . . Retrieved Components . | . . . . . . Parts Scanalyzed . | . . . . . . Part Schematics Acquired . | . . . . . . Parts Damaged . | . . . . . . Bothacking | -11 -10 -10 -10 -9 -8 ------------ Run | Scr Mat Min Exi Min Mat Used RIF Installer . | . . . . . . Robots Hacked . | . . . . . . Non-combat . | . . . . . . Combat . | . . . . . . Robot Hacks Applied . | . . . . . . Relay Couplers Released . | . . . . . . Robots Rewired . | . . . . . . Allies Hacked . | . . . . . . Hacks Repelled . | . . . . . . Allies | -11 -10 -10 -10 -9 -8 -------- Run | Scr Mat Min Exi Min Mat Total Allies . | . . . . . . Largest Group . | . . . . . . Highest-Rated Group . | . . . . . . Highest-Rated Ally . | . . . . . . Total Orders . | . . . . . . Ally Attacks . | . . . . . . Total Damage . | . . . . . . Kills . | . . . . . . Allies Corrupted . | . . . . . . Allies Melted . | . . . . . . Intel | -11 -10 -10 -10 -9 -8 ------- Run | Scr Mat Min Exi Min Mat Robot Analysis Total 2 | . 2 . . . . Derelict Logs Recovered . | . . . . . . Drone Launches . | . . . . . . Drone Recoveries . | . . . . . . Exploration | -11 -10 -10 -10 -9 -8 ------------- Run | Scr Mat Min Exi Min Mat Turns Passed 2254 | 2 1054 80 623 39 456 Spaces Moved 979 | 2 386 51 380 17 143 Core 12 | . . . . . 12 Treads 956 | . 377 51 380 17 131 Legs 11 | 2 9 . . . . Wheels . | . . . . . . Hover . | . . . . . . Flight . | . . . . . . Fastest Speed 120 | 120 120 160 160 180 180 Average Speed 177 | 120 159 160 163 180 267 Slowest Speed 1200 | 120 160 160 180 180 1200 Overloaded Moves . | . . . . . . Propulsion Burnouts . | . . . . . . Robots Hopped . | . . . . . . Cave-ins Triggered . | . . . . . . Exploration Rate (%) 27 | 2 56 13 71 9 13 Regions Visited 5 Branch Regions 3 Pre-discovered Areas 1 | . . . 1 . . Known Exits Taken . | . . . . . . Unknown Exits Taken 5 | 1 1 1 1 1 . Scrap Searched 1 | . . 1 . . . Spaces Dug . | . . . . . . Terrain Destroyed 80 | . . . . 35 45 Melee . | . . . . . . Projectile . | . . . . . . AOE 80 | . . . . 35 45 Terrain Rammed . | . . . . . . Walls Destroyed . | . . . . . . Machines Disabled . | . . . . . . Actions | -11 -10 -10 -10 -9 -8 --------- Run | Scr Mat Min Exi Min Mat Total 1416 | 1 780 50 381 21 183 Wait 358 | . 354 . . . 4 Move 974 | 1 385 50 379 16 143 Hop . | . . . . . . Pick Up 12 | . 2 . 1 . 9 Fast Attach 4 | . 2 . . . 2 Attach 4 | . . . . . 4 Detach 2 | . 1 . . . 1 Swap 11 | . 5 . 1 1 4 Drop 5 | . 3 . . . 2 Fire 46 | . 28 . . 4 14 Melee . | . . . . . . Ram . | . . . . . . Kick . | . . . . . . Crush . | . . . . . . Escape Stasis . | . . . . . . Rewire . | . . . . . . Trap . | . . . . . . Miscellaneous . | . . . . . . Route ------- -11/Scrapyard -10/Materials (discovered 2 exits: [*Mat] / [*Min]) -10/Mines -10/Exiles -9/Mines -8/Materials History --------- Turn | Location | Event 1 | -11/Scrapyard | Discovered new exit (range 1) 3 | -11/Scrapyard | Entered Materials 310 | -10/Materials | Build established: Mutant 760 | -10/Materials | Discovered new exit (range 16) 1012 | -10/Materials | Discovered new exit (range 10) 1057 | -10/Materials | Entered Mines 1128 | -10/Mines | Deemed a non-threat by the Exiles lab entrance 1128 | -10/Mines | Discovered new exit (range 5) 1137 | -10/Mines | Entered Exiles 1174 | -10/Exiles | Met 8R-AWN 1203 | -10/Exiles | Met EX-HEX 1267 | -10/Exiles | Met EX-DEC 1275 | -10/Exiles | Learned location of Zion (-7) 1304 | -10/Exiles | Met EX-BIN 1328 | -10/Exiles | Aligned with FarCom system 1329 | -10/Exiles | Given EX-Vault access code 1384 | -10/Exiles | Opened EX-Vault 1397 | -10/Exiles | Found Flying Fortress v7 1431 | -10/Exiles | Warned to stay clear of 0b10 Research branches 1736 | -10/Exiles | Discovered new exit (range 14) 1760 | -10/Exiles | Left Exiles lab with Flying Fortress v7 1760 | -10/Exiles | Entered Mines 1779 | -9/Mines | Discovered new exit (range 11) 1798 | -9/Mines | Destroyed 7 combat bots 1799 | -9/Mines | Entered Materials 1799 | -8/Materials | Evolved 4 slots: Propulsion x1, Utility x2, Weapon x1 2084 | -8/Materials | Build established: Hauler-Skirmisher 2144 | -8/Materials | Lost 6 parts (1p3n1u1w) 2255 | -8/Materials | Self-destructed Last Messages --------------- 02155_ U-05 Engineer lays Concrete. 02157_ U-05 Engineer builds a Wall. 02157_ U-05 Engineer lays Concrete. 02161_ U-05 Engineer builds a Wall. 02161_ U-05 Engineer lays Concrete. 02162_ U-05 Engineer builds a Wall. 02162_ U-05 Engineer lays Concrete. 02167_ U-05 Engineer builds a Wall. 02167_ U-05 Engineer lays Concrete. 02168_ U-05 Engineer builds a Wall. 02169_ U-05 Engineer lays Concrete. 02170_ U-05 Engineer builds a Wall. 02189_ R-06 Scavenger collects Imp. Heat Sink. 02192_ R-06 Scavenger collects Melee Analysis Suite. 02220_ Acquired 89 matter. 02235_ Penetrated by Slug. 02241_ Imp. Assault Rifle destroyed. 02241_ Penetrated by Slug. 02244_ Slug penetrates Wall. [Achievement: Back For More] Map ----- +----------------------------------------------------+ | ??????????????????????????????########### #?????? | | ????????????????????????????????????????# #?????? | | ????????????????????????????????????????# #?????? | | ????????????????????????????????????????# #?????? | | ?????????????????????????????????????#### ####??? | | ????????????????????????###########??# #??? | | ????????????????????????# !#??# #####+#??? | | ????????????????????????# !! #??# #???# ??? | | ????????????????????##### [ =#?## ##??# ]??? | | ?????????????? + ### #### ]]?? | | ????????????????######### """ """ + + !]?? | | ????????????????????????# """ """ ### #### ? | | ????????????g???????????# """ """ #### ###?# "" ? | | ????????????????????????# # #?# "Y # | | ??????????????????"?#########+##### #?? "" # | | ??????????????????"?# + !! #?? ? # | | ??????????????????? # #### !! #??##??# | | ??????????????????? # #### !! #??????? | | ????????????????????+ #### # ## !#??????? | | ??????????Y?????????# #####+## #########??????? | | ????????????????????# # # ##?????????????? | | ????????????????????# # % # #?????????????? | | ????????????????????# # # ##?????????????? | | ????????????????????# #r # #??????????????? | | ????????????????????# # # #??????????????? | | ????????????????????# g@ # #??????????????? | | ????????????????????# ######## #??????????????? | | ????????????????????# ## !! ###??????????????? | | ????????????????????# ?# !!###????????????????? | | ???????????????????# ?? ==#??????????????????? | | ?????????????????? ?? ==#??????????????????? | | ????????????????? h ?? ==#??????????????????? | | ???????????????? ?? ==#??????????????????? | | ???????????????##### ??? #####??????????????????? | | ???????????????????#??? #???????????????????????? | | ??????????????????????? ????????????????????????? | | ????????????????????????????????????????????????? | | ????????????????????????????????????????????????? | | ????????????????????????????????????????????????? | | ????????????????????????????????????????????????? | | ????????????????????????????????????????????????? | | ????????????????????????????????????????????????? | | ????????????????????????????????????????????????? | | ????????????????????????????????????????????????? | | ????????????????????????????????????????????????? | | ????????????????????????????????????????????????? | | ????????????????????????????????????????????????? | | ????????????????????????????????????????????????? | | ????????????????????????????????????????????????? | | ????????????????????????????????????????????????? | +----------------------------------------------------+ Best States ------------- Heat Dissipation 31 Energy Generation 10 Energy Capacity 250 Matter Stores 300 Matter Capacity 300 Sight Range 16 Terrain Scan Density 10 ECM Strength 1 Weapon Shielding 33 Evasion (%) 40 Recoil Reduction 3 Item Schematics ----------------- None Robot Schematics ------------------ None Fabricated ------------ Nothing Alien Tech Used ----------------- None Achievements -------------- Back For More Challenges ------------ None Game ------ Seed DeepDimensionalBoregun Manual? 0 Play Time 00:10:59 Cumulative 53.4 hours Start 2020.10.16 @ 00:53:13 End 2020.10.16 @ 01:04:07 Sessions 1 Manual Loads 0 Difficulty Rogue Special Mode None Game No. 50 Rogue 50 Adventurer 0 Explorer 0 Win Type - Total 0 Types 0/0/0/0/0/0/0/0/0 Lore% 36 Gallery% 43 Achievement% 36 Wizard Run 0 Options --------- ASCII 1 Keyboard 1 Movement Arrows Keybinds 0 Fullscreen 1 Font 24/Proggy Map View 76x50 Tactical HUD 1 Map Filters NONE Filters NONE Steam 1 RUN: 88e40654-05da-4d90-99e2-e7048dddae71